bitfinex-derivatives/quotes_BNBF0:USTF0_20250807
["timestamp","ask_amount","ask_price","bid_price","bid_amount"]
[1754591268082,0.731,777.23,776.56,0.86341255]
[1754591269384,0.731,777.23,776.55,0.86341255]
[1754591270289,0.22392526,777.45,776.56,0.86341255]
[1754591270483,0.85670231,777.44,776.55,0.86341255]
[1754591270788,0.85670231,777.43,776.55,0.86341255]
[1754591270986,0.85670231,777.42,776.55,0.86341255]
[1754591271184,0.85670231,777.41,776.55,0.86341255]
[1754591271485,0.85670231,777.4,776.55,0.86341255]
[1754591271685,0.85670231,777.39,776.55,0.86341255]
[1754591271887,0.85670231,777.38,776.55,0.86341255]
[1754591272086,0.85670231,777.37,776.55,0.86341255]
[1754591272290,0.85670231,777.36,776.55,0.86341255]
[1754591272585,0.85670231,777.35,776.55,0.86341255]
[1754591272790,0.85670231,777.34,776.55,0.86341255]
[1754591272983,0.85670231,777.33,776.55,0.86341255]
[1754591273187,0.85670231,777.32,776.55,0.86341255]
[1754591273485,0.85670231,777.31,776.55,0.86341255]
[1754591273689,0.85670231,777.3,776.55,0.86341255]
[1754591273888,0.85670231,777.29,776.55,0.86341255]
[1754591274093,0.959,777.35,776.55,0.86341255]
[1754591274298,0.8566876,777.34,776.55,0.86341255]
[1754591274597,0.8566876,777.33,776.57,0.86341255]
[1754591274794,0.8566876,777.32,776.57,0.86341255]
[1754591274995,0.8566876,777.31,776.57,0.86341255]
[1754591275296,0.8566876,777.3,776.57,0.86341255]
[1754591275494,0.8566876,777.29,776.57,0.86341255]
[1754591275694,0.8566876,777.28,776.57,0.86341255]
[1754591275997,0.8566876,777.27,776.57,0.86341255]
[1754591276194,0.959,777.35,776.57,0.86341255]
[1754591276499,0.85683479,777.34,776.57,0.86341255]
[1754591276795,0.85683479,777.33,776.57,0.86341255]
[1754591276994,0.85683479,777.32,776.57,0.86341255]
[1754591277192,0.85683479,777.31,776.62,0.86341255]
[1754591277396,0.85683479,777.3,776.62,0.86341255]
[1754591277696,0.85683479,777.29,776.62,0.86341255]
[1754591277896,0.85683479,777.28,776.62,0.86341255]
[1754591278097,0.85683479,777.27,776.62,0.86341255]
[1754591278298,0.85683479,777.26,776.62,0.86341255]
[1754591278498,0.85683479,777.25,776.62,0.86341255]
[1754591278798,0.85683479,777.24,776.62,0.86341255]
[1754591278998,0.959,777.35,776.62,0.86341255]
[1754591279200,0.85687452,777.34,776.62,0.86341255]
[1754591279400,0.85687452,777.33,776.62,0.86341255]
[1754591279598,0.85687452,777.32,776.62,0.86341255]
[1754591279797,0.85687452,777.31,776.62,0.86341255]
[1754591280096,0.85687452,777.3,776.62,0.86341255]
[1754591280295,0.959,777.35,776.62,0.86341255]
[1754591280296,0.85687452,777.29,776.62,0.86341255]
[1754591280497,0.85687452,777.28,776.62,0.86341255]
[1754591280703,0.959,777.35,776.46,0.86341255]
[1754591280901,0.959,777.35,776.47,0.86341255]
[1754591281500,0.959,777.35,776.48,0.86341255]
[1754591281697,0.959,777.35,776.47,0.86341255]
[1754591281898,0.959,777.35,776.49,0.86341255]
[1754591282500,0.959,777.35,776.89,0.86341255]
[1754591283500,0.959,777.35,776.86,0.86341255]
[1754591284099,0.959,777.35,776.89,0.86341255]
[1754591284400,0.959,777.35,776.87,0.86341255]
[1754591284599,0.959,777.35,776.89,0.86341255]
[1754591284999,0.959,777.35,776.88,0.86341255]
[1754591285201,0.959,777.35,776.89,0.86341255]
[1754591285401,0.959,777.35,776.87,0.86341255]
[1754591286299,0.959,777.35,776.86,0.86341255]
[1754591287500,0.959,777.35,776.84,0.86341255]
[1754591287906,0.959,777.35,776.85,0.86341255]
[1754591288106,0.959,777.35,776.86,0.86341255]
[1754591288306,0.959,777.35,776.87,0.86341255]
[1754591288703,0.959,777.35,776.89,0.86341255]
[1754591288901,0.959,777.35,776.9,0.86341255]
[1754591289408,0.959,777.35,776.91,0.86341255]
[1754591289710,0.959,777.35,776.89,0.86341255]
[1754591290309,0.959,777.35,776.88,0.86341255]
[1754591290711,0.959,777.35,776.89,0.86341255]
[1754591291406,0.959,777.35,776.88,0.86341255]
[1754591292310,0.959,777.35,776.87,0.86341255]
[1754591293308,0.959,777.35,776.88,0.86341255]
[1754591293511,0.959,777.35,776.86,0.86341255]
[1754591294311,0.959,777.35,776.79,0.86341255]
[1754591295310,0.959,777.35,776.8,0.86341255]
[1754591295513,0.959,777.35,776.79,0.86341255]
[1754591296516,0.959,777.35,776.78,0.86341255]
[1754591298119,0.959,777.35,776.85,0.86341255]
[1754591299317,0.959,777.35,776.84,0.86341255]
[1754591299719,0.959,777.35,776.86,0.86341255]
[1754591300318,0.959,777.35,776.85,0.86341255]
[1754591301419,0.959,777.35,776.84,0.86341255]
[1754591302224,0.959,777.35,776.89,0.86341255]
[1754591302625,0.959,777.35,776.88,0.86341255]
[1754591304324,0.959,777.35,776.87,0.86341255]
[1754591304524,0.959,777.35,776.88,0.86341255]
[1754591305124,0.959,777.35,776.89,0.86341255]
[1754591307330,0.959,777.35,776.88,0.86341255]
[1754591307733,0.959,777.35,776.89,0.86341255]
[1754591309330,0.959,777.35,776.88,0.86341255]
[1754591310230,0.959,777.35,776.89,0.86341255]
[1754591310432,0.959,777.35,776.88,0.86341255]
[1754591311432,0.959,777.35,776.87,0.86341255]
[1754591313635,0.959,777.35,776.86,0.86341255]
[1754591313836,0.959,777.35,776.85,0.86341255]
[1754591314836,0.22383452,777.87,776.85,0.86341255]
[1754591315032,0.85137478,777.86,776.85,0.86341255]
[1754591315232,0.85137478,777.85,776.85,0.86341255]
[1754591315436,0.85137478,777.84,776.85,0.86341255]
[1754591315636,0.22383452,777.87,776.85,0.86341255]
[1754591315837,0.85142958,777.86,776.85,0.86341255]
[1754591316038,0.85142958,777.85,776.85,0.86341255]
[1754591316338,0.85142958,777.84,776.85,0.86341255]
[1754591316535,0.85142958,777.83,776.85,0.86341255]
[1754591316736,0.85142958,777.82,776.85,0.86341255]
[1754591316935,0.85142958,777.81,776.85,0.86341255]
[1754591317140,0.85142958,777.8,776.85,0.86341255]
[1754591317341,0.85142958,777.79,776.85,0.86341255]
[1754591317539,0.85142958,777.78,776.85,0.86341255]
[1754591317739,0.85142958,777.77,776.85,0.86341255]
[1754591318039,0.85142958,777.76,776.85,0.86341255]
[1754591318241,0.85142958,777.75,776.85,0.86341255]
[1754591318440,0.85142958,777.74,776.86,0.86341255]
[1754591318639,0.85142958,777.73,776.86,0.86341255]
[1754591318843,0.22383452,777.87,776.76,0.86341255]
[1754591320142,0.22383452,777.87,776.77,0.86341255]
[1754591320344,0.22383452,777.87,776.84,0.86341255]
[1754591322342,0.22383452,777.87,776.85,0.86341255]
[1754591323440,0.22383452,777.87,776.86,0.86341255]
[1754591325445,0.22383452,777.87,776.87,0.86341255]
[1754591326445,0.22383452,777.87,776.88,0.86341255]
[1754591327342,0.22383452,777.87,776.87,0.86341255]
[1754591327646,0.85289798,777.86,776.89,0.86341255]
[1754591327841,0.22383452,777.87,776.88,0.86341255]
[1754591328346,0.22383452,777.87,776.89,0.86341255]
[1754591328543,0.85307083,777.86,776.89,0.86341255]
[1754591328748,0.22383452,777.87,775.39,2.8761235]
[1754591328749,0.85307083,777.85,776.91,0.86341255]
[1754591328944,0.22383452,777.87,776.91,0.86341255]
[1754591329145,0.85307083,777.86,776.89,0.86341255]
[1754591329347,0.85307083,777.85,776.89,0.86341255]
[1754591329646,0.22383452,777.87,775.38,0.2240139]
[1754591329647,0.22383452,777.87,776.9,0.86341255]
[1754591329844,0.85326433,777.86,776.9,0.86341255]
[1754591330047,0.85326433,777.85,776.9,0.86341255]
[1754591330244,0.85326433,777.84,776.9,0.86341255]
[1754591330444,0.85326433,777.83,776.91,0.86341255]
[1754591330643,0.22383452,777.87,776.91,0.86341255]
[1754591330846,0.85351225,777.86,776.91,0.86341255]
[1754591331044,0.85351225,777.85,776.91,0.86341255]
[1754591331347,0.85351225,777.84,776.91,0.86341255]
[1754591331545,0.85351225,777.83,776.92,0.86341255]
[1754591331744,0.22383452,777.87,776.93,0.86341255]
[1754591332044,0.85376407,777.86,776.93,0.86341255]
[1754591332248,0.85376407,777.85,776.93,0.86341255]
[1754591332446,0.85376407,777.84,776.94,0.86341255]
[1754591332645,0.85376407,777.83,776.94,0.86341255]
[1754591332849,0.85376407,777.82,776.94,0.86341255]
[1754591333149,0.22383452,777.87,776.94,0.86341255]
[1754591333348,0.85432688,777.86,776.95,0.86341255]
[1754591333548,0.22383452,777.87,776.95,0.86341255]
[1754591333849,0.85435946,777.86,776.95,0.86341255]
[1754591334046,0.85435946,777.85,776.96,0.86341255]
[1754591334247,0.85435946,777.84,776.96,0.86341255]
[1754591334451,0.85435946,777.83,776.98,0.86341255]
[1754591334752,0.85435946,777.82,776.98,0.86341255]
[1754591334951,0.22383452,777.87,776.98,0.86341255]
[1754591335250,0.85471428,777.86,776.97,0.86341255]
[1754591335451,0.85471428,777.85,776.99,0.86341255]
[1754591335649,0.85471428,777.84,776.98,0.86341255]
[1754591335848,0.85471428,777.83,776.98,0.86341255]
[1754591336049,0.22383452,777.87,776.99,0.86341255]
[1754591336249,0.85543671,777.86,776.99,0.86341255]
[1754591336551,0.85543671,777.85,777.0,0.86341255]
[1754591336749,0.85590372,777.84,777.0,0.86341255]
[1754591336947,0.85590372,777.83,777.0,0.86341255]
[1754591337147,0.85590372,777.82,777.02,0.86341255]
[1754591337352,0.85590372,777.81,777.04,0.86341255]
[1754591337552,0.85590372,777.8,777.04,0.86341255]
[1754591337750,0.85590372,777.79,777.07,0.86341255]
[1754591337956,0.85590372,777.78,777.07,0.86341255]
[1754591338153,0.85715782,777.77,777.07,0.86341255]
[1754591338456,0.85715782,777.76,777.09,0.86341255]
[1754591338651,0.85715782,777.75,777.08,0.86341255]
[1754591338952,0.22383452,777.87,777.08,0.86341255]
[1754591339156,0.85717242,777.86,777.08,0.86341255]
[1754591339353,0.85717242,777.86,776.9,1.1504494]
[1754591339354,0.85717242,777.85,777.11,0.86341255]
[1754591339653,0.85717242,777.84,777.11,0.86341255]
[1754591339958,0.85717242,777.83,777.11,0.86341255]
[1754591340160,0.85717242,777.82,777.11,0.86341255]
[1754591340357,0.85717242,777.81,777.11,0.86341255]
[1754591340558,0.85717242,777.8,777.11,0.86341255]
[1754591340862,0.85717242,777.79,777.12,0.86341255]
[1754591341059,0.85717242,777.78,777.12,0.86341255]
[1754591341260,0.85717242,777.77,777.13,0.86341255]
[1754591341461,0.85717242,777.76,777.13,0.86341255]
[1754591341654,0.22383452,777.87,777.13,0.86341255]
[1754591341855,0.85827744,777.86,777.16,0.86341255]
[1754591342159,0.85827744,777.85,777.16,0.86341255]
[1754591342361,0.85827744,777.84,777.2,0.86341255]
[1754591342556,0.85827744,777.83,777.18,0.86341255]
[1754591342760,0.85827744,777.82,777.14,0.86341255]
[1754591342962,0.85827744,777.81,777.14,0.86341255]
[1754591343258,0.85827744,777.8,777.14,0.86341255]
[1754591343562,0.85828646,777.79,777.09,0.86341255]
[1754591343756,0.85828646,777.78,777.18,0.86341255]
[1754591343957,0.85828646,777.77,777.18,0.86341255]
[1754591344157,0.85828764,777.76,777.18,0.86341255]
[1754591344361,0.85828764,777.75,777.2,0.86341255]
[1754591344559,0.85828764,777.74,777.2,0.86341255]
[1754591344758,0.85828764,777.73,777.2,0.86341255]
[1754591344961,0.85828764,777.72,777.2,0.86341255]
[1754591345164,0.85828764,777.71,777.21,0.86341255]
[1754591345362,0.85828764,777.7,777.21,0.86341255]
[1754591345565,0.705,777.92,777.21,0.86341255]
[1754591345862,0.85829182,777.91,777.21,0.86341255]
[1754591346063,0.85829182,777.9,777.21,0.86341255]
[1754591346259,0.85829182,777.89,777.21,0.86341255]
[1754591346462,0.85829182,777.88,777.22,0.86341255]
[1754591346657,0.85829182,777.87,777.21,0.86341255]
[1754591346863,0.85829544,777.86,777.21,0.86341255]
[1754591347164,0.85829544,777.85,777.17,0.86341255]
[1754591347460,0.85829544,777.84,777.17,0.86341255]
[1754591347667,0.85829544,777.83,777.17,0.86341255]
[1754591347861,0.85829544,777.82,777.17,0.86341255]
[1754591348062,0.85829544,777.81,777.17,0.86341255]
[1754591348362,0.85829544,777.8,777.18,0.86341255]
[1754591348558,0.85829544,777.79,777.16,0.86341255]
[1754591348765,0.85829544,777.78,777.16,0.86341255]
[1754591348960,0.85829544,777.77,777.16,0.86341255]
[1754591349262,0.85829544,777.76,777.16,0.86341255]
[1754591349460,0.85829544,777.75,777.17,0.86341255]
[1754591349661,0.85829544,777.74,777.17,0.86341255]
[1754591349965,0.705,777.92,777.17,0.86341255]
[1754591350265,0.85841497,777.91,777.17,0.86341255]
[1754591350464,0.85841497,777.9,777.17,0.86341255]
[1754591350865,0.85839666,777.89,777.17,0.86341255]
[1754591351061,0.85839666,777.88,777.17,0.86341255]
[1754591351359,0.85839666,777.87,777.17,0.86341255]
[1754591351565,0.85839666,777.86,777.17,0.86341255]
[1754591351862,0.85839666,777.85,777.17,0.86341255]
[1754591352060,0.85839666,777.84,777.17,0.86341255]
[1754591352261,0.85839666,777.83,777.16,0.86341255]
[1754591352462,0.85839666,777.82,777.17,0.86341255]
[1754591352664,0.705,777.92,777.17,0.86341255]
[1754591352859,0.85839737,777.91,777.17,0.86341255]
[1754591353065,0.85839737,777.9,777.17,0.86341255]
[1754591353262,0.85839737,777.89,777.17,0.86341255]
[1754591353461,0.85839737,777.88,777.17,0.86341255]
[1754591353663,0.85839737,777.87,777.17,0.86341255]
[1754591353866,0.85839737,777.86,777.17,0.86341255]
[1754591354061,0.85839737,777.85,777.17,0.86341255]
[1754591354262,0.85839737,777.84,777.18,0.86341255]
[1754591354460,0.85839737,777.83,777.17,0.86341255]
[1754591354766,0.85839737,777.82,777.17,0.86341255]
[1754591354961,0.705,777.92,777.17,0.86341255]
[1754591355165,0.85844716,777.91,777.16,0.86341255]
[1754591355367,0.85844716,777.9,777.17,0.86341255]
[1754591355663,0.85844716,777.89,777.17,0.86341255]
[1754591355862,0.85844716,777.88,777.17,0.86341255]
[1754591356062,0.85844716,777.87,777.17,0.86341255]
[1754591356263,0.85844716,777.86,777.17,0.86341255]
[1754591356462,0.85844716,777.85,777.17,0.86341255]
[1754591356664,0.705,777.92,777.17,0.86341255]
[1754591356967,0.85828328,777.91,777.17,0.86341255]
[1754591357164,0.85828328,777.91,776.69,1.7256741]
[1754591357165,0.85828328,777.9,777.19,0.86341255]
[1754591357464,0.85828328,777.89,777.19,0.86341255]
[1754591357669,0.85828328,777.88,777.19,0.86341255]
[1754591357872,0.85828328,777.87,777.19,0.86341255]
[1754591358063,0.85828328,777.86,777.21,0.86341255]
[1754591358367,0.85828328,777.85,777.21,0.86341255]
[1754591358569,0.85828328,777.84,777.21,0.86341255]
[1754591358762,0.705,777.92,777.21,0.86341255]
[1754591358967,0.85815362,777.91,777.21,0.86341255]
[1754591359263,0.85815362,777.9,777.21,0.86341255]
[1754591359467,0.85815362,777.89,777.21,0.86341255]
[1754591359670,0.858099,777.88,777.21,0.86341255]
[1754591359964,0.858099,777.87,777.21,0.86341255]
[1754591360167,0.858099,777.86,777.21,0.86341255]
[1754591360368,0.85809596,777.85,777.21,0.86341255]
[1754591360568,0.873,777.89,777.21,0.86341255]
[1754591360872,0.85805034,777.88,777.21,0.86341255]
[1754591361168,0.85805034,777.87,777.21,0.86341255]
[1754591361366,0.85805034,777.86,777.21,0.86341255]
[1754591361664,0.85805034,777.85,777.21,0.86341255]
[1754591361863,0.873,777.89,777.21,0.86341255]
[1754591362068,0.85800707,777.88,777.22,0.86341255]
[1754591362268,0.85800707,777.87,777.22,0.86341255]
[1754591362469,0.85800707,777.86,777.22,0.86341255]
[1754591362770,0.85800707,777.85,777.22,0.86341255]
[1754591362965,0.873,777.89,777.22,0.86341255]
[1754591363270,0.85796882,777.88,777.21,0.86341255]
[1754591363468,0.85796882,777.87,777.21,0.86341255]
[1754591363764,0.85796882,777.86,777.21,0.86341255]
[1754591363969,0.85796882,777.85,777.21,0.86341255]
[1754591364271,0.873,777.89,777.21,0.86341255]
[1754591364565,0.85790932,777.88,777.2,0.86341255]
[1754591364769,0.873,777.89,777.2,0.86341255]
[1754591364770,0.85790932,777.87,777.2,0.86341255]
[1754591365070,0.85790932,777.86,777.21,0.86341255]
[1754591365265,0.85790932,777.85,777.21,0.86341255]
[1754591365567,0.873,777.89,777.21,0.86341255]
[1754591365770,0.85772318,777.88,777.21,0.86341255]
[1754591366065,0.85772318,777.87,777.21,0.86341255]
[1754591366265,0.85772318,777.86,777.21,0.86341255]
[1754591366465,0.85772318,777.85,777.21,0.86341255]
[1754591366664,0.873,777.89,777.22,0.86341255]
[1754591366866,0.85769966,777.88,777.22,0.86341255]
[1754591367066,0.85769966,777.87,777.21,0.86341255]
[1754591367269,0.85769966,777.86,777.21,0.86341255]
[1754591367468,0.85769966,777.85,777.21,0.86341255]
[1754591367668,0.85769966,777.84,777.21,0.86341255]
[1754591367866,0.85769966,777.83,777.21,0.86341255]
[1754591368068,0.85769966,777.82,777.21,0.86341255]
[1754591368270,0.85769966,777.81,777.21,0.86341255]
[1754591368468,0.85769966,777.8,777.21,0.86341255]
[1754591368673,0.873,777.89,777.21,0.86341255]
[1754591368974,0.85776496,777.88,777.21,0.86341255]
[1754591369170,0.85776496,777.87,777.21,0.86341255]
[1754591369374,0.85776496,777.86,777.21,0.86341255]
[1754591369576,0.85776496,777.85,777.21,0.86341255]
[1754591369875,0.85776496,777.84,777.21,0.86341255]
[1754591370171,0.85776496,777.83,777.21,0.86341255]
[1754591370375,0.85776496,777.82,777.21,0.86341255]
[1754591370574,0.85776496,777.81,777.21,0.86341255]
[1754591370772,0.85776496,777.8,777.21,0.86341255]
[1754591370973,0.85776496,777.79,777.21,0.86341255]
[1754591371175,0.85776496,777.78,777.21,0.86341255]
[1754591371377,0.85776496,777.77,777.21,0.86341255]
[1754591371679,0.873,777.89,777.22,0.86341255]
[1754591371877,0.85785399,777.88,777.22,0.86341255]
[1754591372173,0.85785399,777.87,777.2,0.86341255]
[1754591372377,0.85785399,777.86,777.2,0.86341255]
[1754591372572,0.85785399,777.85,777.2,0.86341255]
[1754591372776,0.873,777.89,777.2,0.86341255]
[1754591372777,0.85785399,777.84,777.2,0.86341255]
[1754591372974,0.85785399,777.83,777.2,0.86341255]
[1754591373175,0.85785399,777.82,777.2,0.86341255]
[1754591373372,0.85785399,777.81,777.2,0.86341255]
[1754591373577,0.85785399,777.8,777.2,0.86341255]
[1754591373774,0.85785399,777.79,777.21,0.86341255]
[1754591373979,0.85785399,777.78,777.21,0.86341255]
[1754591374177,0.85785399,777.77,777.21,0.86341255]
[1754591374483,0.85785399,777.76,777.23,0.86341255]
[1754591374682,0.85785399,777.75,777.23,0.86341255]
[1754591374876,0.85785399,777.74,777.23,0.86341255]
[1754591375180,0.85785399,777.73,777.24,0.86341255]
[1754591375379,0.873,777.89,777.26,0.86341255]
[1754591375578,0.85801812,777.88,777.26,0.86341255]
[1754591375777,0.85801812,777.87,777.26,0.86341255]
[1754591375975,0.85801812,777.86,777.26,0.86341255]
[1754591376178,0.85801812,777.85,777.26,0.86341255]
[1754591376377,0.85801812,777.84,777.26,0.86341255]
[1754591376578,0.85801812,777.83,777.26,0.86341255]
[1754591376782,0.85801812,777.82,777.26,0.86341255]
[1754591376980,0.85801812,777.81,777.27,0.86341255]
[1754591377183,0.85801812,777.8,777.29,0.86341255]
[1754591377383,0.85801812,777.79,777.29,0.86341255]
[1754591377579,0.86711955,777.84,777.3,0.86341255]
[1754591377880,0.85810526,777.83,777.3,0.86341255]
[1754591378084,0.85810526,777.82,777.3,0.86341255]
[1754591378281,0.85810526,777.81,777.3,0.86341255]
[1754591378584,0.85810526,777.8,777.3,0.86341255]
[1754591378783,0.85810526,777.79,777.3,0.86341255]
[1754591378982,0.85810526,777.78,777.3,0.86341255]
[1754591379281,0.85810526,777.77,777.31,0.86341255]
[1754591379480,0.85810526,777.76,777.3,0.86341255]
[1754591379680,0.85810526,777.75,777.3,0.86341255]
[1754591379882,0.85810526,777.74,777.3,0.86341255]
[1754591380180,0.85810526,777.73,777.3,0.86341255]
[1754591380382,0.85810526,777.73,777.15,1.1504494]
[1754591380383,0.85810526,777.72,777.32,0.86341255]
[1754591380581,0.85810526,777.71,777.32,0.86341255]
[1754591380780,0.85810526,777.7,777.32,0.86341255]
[1754591380979,0.85810526,777.69,777.32,0.86341255]
[1754591381181,0.86711955,777.8,777.32,0.86341255]
[1754591381485,0.85819255,777.79,777.32,0.86341255]
[1754591381683,0.85819255,777.78,777.32,0.86341255]
[1754591381884,0.85819255,777.77,777.32,0.86341255]
[1754591382085,0.85819255,777.76,777.33,0.86341255]
[1754591382282,0.85819255,777.75,777.32,0.86341255]
[1754591382486,0.85819255,777.74,777.32,0.86341255]
[1754591382688,0.85819255,777.73,777.32,0.86341255]
[1754591382885,0.85819255,777.72,777.31,0.86341255]
[1754591383089,0.85819255,777.71,777.29,0.86341255]
[1754591383389,0.86711955,777.84,777.29,0.86341255]
[1754591383585,0.85820277,777.83,777.29,0.86341255]
[1754591383784,0.85820277,777.82,777.3,0.86341255]
[1754591383988,0.85820277,777.81,777.3,0.86341255]
[1754591384288,0.85820277,777.8,777.3,0.86341255]
[1754591384484,0.85820277,777.79,777.3,0.86341255]
[1754591384685,0.85820277,777.78,777.3,0.86341255]
[1754591384989,0.85820277,777.77,777.3,0.86341255]
[1754591385189,0.85820277,777.76,777.3,0.86341255]
[1754591385488,0.85820277,777.75,777.3,0.86341255]
[1754591385688,0.85820277,777.74,777.3,0.86341255]
[1754591385889,0.85820277,777.73,777.3,0.86341255]
[1754591386090,0.85820277,777.72,777.3,0.86341255]
[1754591386285,0.85820277,777.71,777.3,0.86341255]
[1754591386486,0.85820277,777.83,777.3,0.86341255]
[1754591386784,0.85821722,777.82,777.3,0.86341255]
[1754591386986,0.85821722,777.81,777.3,0.86341255]
[1754591387185,0.85821722,777.8,777.3,0.86341255]
[1754591387390,0.85821722,777.79,777.3,0.86341255]
[1754591387587,0.85821722,777.78,777.29,0.86341255]
[1754591387787,0.85821722,777.77,777.29,0.86341255]
[1754591387986,0.85821722,777.76,777.29,0.86341255]
[1754591388191,0.85821722,777.75,777.29,0.86341255]
[1754591388391,0.85821722,777.74,777.29,0.86341255]
[1754591388590,0.85821722,777.73,777.29,0.86341255]
[1754591388790,0.85821722,777.72,777.29,0.86341255]
[1754591388991,0.85821722,777.71,777.29,0.86341255]
[1754591389191,0.86711955,777.84,777.29,0.86341255]
[1754591389490,0.8582382,777.83,777.29,0.86341255]
[1754591389691,0.8582382,777.82,777.29,0.86341255]
[1754591389892,0.8582382,777.81,777.29,0.86341255]
[1754591390090,0.8582382,777.8,777.29,0.86341255]
[1754591390287,0.8582382,777.79,777.29,0.86341255]
[1754591390488,0.8582382,777.78,777.2,0.86341255]
[1754591390688,0.8582382,777.77,777.2,0.86341255]
[1754591390892,0.873,777.89,777.2,0.86341255]
[1754591391092,0.85826382,777.88,777.2,0.86341255]
[1754591391294,0.85826382,777.87,777.2,0.86341255]
[1754591391589,0.85826382,777.86,777.2,0.86341255]
[1754591391795,0.85826382,777.85,777.2,0.86341255]
[1754591391993,0.85826382,777.84,777.2,0.86341255]
[1754591392190,0.85826382,777.83,777.2,0.86341255]
[1754591392393,0.85826382,777.82,777.2,0.86341255]
[1754591392594,0.85826382,777.81,777.2,0.86341255]
[1754591392893,0.85826382,777.8,777.21,0.86341255]
[1754591393094,0.85826382,777.79,777.21,0.86341255]
[1754591393393,0.85826382,777.78,777.13,0.86341255]
[1754591393594,0.85826382,777.77,777.13,0.86341255]
[1754591393894,0.85826382,777.76,777.14,0.86341255]
[1754591394096,0.85826382,777.75,777.14,0.86341255]
[1754591394394,0.85826382,777.74,777.14,0.86341255]
[1754591394591,0.85826382,777.73,777.14,0.86341255]
[1754591394795,0.85826382,777.72,777.14,0.86341255]
[1754591394996,0.85826382,777.71,777.14,0.86341255]
[1754591395193,0.85824236,777.7,777.13,0.86341255]
[1754591395497,1.74011955,777.89,777.13,0.86341255]
[1754591395692,0.85867879,777.88,777.13,0.86341255]
[1754591395897,0.85867879,777.87,777.13,0.86341255]
[1754591396094,0.85867879,777.86,777.13,0.86341255]
[1754591396292,0.85867879,777.85,777.13,0.86341255]
[1754591396496,0.85867879,777.84,777.13,0.86341255]
[1754591396694,0.85867879,777.83,777.13,0.86341255]
[1754591396994,0.85867879,777.82,777.13,0.86341255]
[1754591397194,0.85867879,777.81,777.13,0.86341255]
[1754591397498,0.85867879,777.8,777.12,0.86341255]
[1754591397698,0.85867879,777.79,777.12,0.86341255]
[1754591397899,0.85867879,777.78,777.12,0.86341255]
[1754591398197,0.85867879,777.77,777.12,0.86341255]
[1754591398395,0.85867879,777.76,777.12,0.86341255]
[1754591398600,0.85859675,777.75,777.12,0.86341255]
[1754591398801,0.85859675,777.74,777.12,0.86341255]
[1754591399001,0.85859675,777.73,777.12,0.86341255]
[1754591399196,0.85859675,777.72,777.12,0.86341255]
[1754591399398,0.85859675,777.71,777.12,0.86341255]
[1754591399598,0.751,777.77,777.12,0.86341255]
[1754591399797,0.85857262,777.76,777.12,0.86341255]
[1754591399998,0.751,777.77,777.12,0.86341255]
[1754591399999,0.85857262,777.75,777.12,0.86341255]
[1754591400199,0.85857262,777.74,777.12,0.86341255]
[1754591400497,0.85857262,777.73,777.14,0.86341255]
[1754591400699,0.85857262,777.72,777.12,0.86341255]
[1754591401000,0.85868278,777.71,776.99,0.86341255]
[1754591401201,0.85868278,777.7,777.0,0.86341255]
[1754591401403,0.85868278,777.69,776.99,0.86341255]
[1754591401604,0.85868278,777.68,776.99,0.86341255]
[1754591401800,0.85868278,777.67,776.99,0.86341255]
[1754591402002,0.85868278,777.66,777.0,0.86341255]
[1754591402202,0.85868278,777.65,776.99,0.86341255]
[1754591402425,0.85868278,777.64,776.99,0.86341255]
[1754591402600,0.85868278,777.63,776.99,0.86341255]
[1754591402798,0.85868278,777.62,776.99,0.86341255]
[1754591403007,0.85826942,777.61,776.98,0.86341255]
[1754591403205,0.751,777.77,776.97,0.86341255]
[1754591403506,0.85811496,777.76,776.96,0.86341255]
[1754591403702,0.85811496,777.75,776.96,0.86341255]
[1754591403901,0.85811496,777.74,776.96,0.86341255]
[1754591404108,0.85811496,777.73,776.96,0.86341255]
[1754591404409,0.85811496,777.72,776.96,0.86341255]
[1754591404604,0.85811496,777.71,776.97,0.86341255]
[1754591404803,0.85811496,777.7,776.96,0.86341255]
[1754591405104,0.85811496,777.69,776.98,0.86341255]
[1754591405303,0.85811496,777.68,776.97,0.86341255]
[1754591405507,0.85811496,777.67,776.97,0.86341255]
[1754591405703,0.85811496,777.66,776.97,0.86341255]
[1754591405906,0.85811496,777.65,776.97,0.86341255]
[1754591406104,0.85811496,777.64,776.96,0.86341255]
[1754591406308,0.85811496,777.63,776.95,0.86341255]
[1754591406508,0.751,777.77,776.95,0.86341255]
[1754591406709,0.85772425,777.76,776.95,0.86341255]
[1754591406905,0.751,777.77,775.5,2.8761235]
[1754591406906,0.85772425,777.75,776.96,0.86341255]
[1754591407105,0.85772425,777.74,776.96,0.86341255]
[1754591407306,0.751,777.77,776.96,0.86341255]
[1754591407307,0.85772425,777.73,776.96,0.86341255]
[1754591407505,0.85772425,777.72,776.96,0.86341255]
[1754591407705,0.751,777.77,776.96,0.86341255]
[1754591407706,0.85772425,777.71,776.96,0.86341255]
[1754591407906,0.85772425,777.7,776.96,0.86341255]
[1754591408205,0.85772425,777.69,776.95,0.86341255]